bitfinex/quotes_BTCUSD_20220212
["timestamp","ask_amount","ask_price","bid_price","bid_amount"]
[1644677100886,0.08394881,42018.0,42014.0,0.16754216]
[1644677101081,0.08394881,42018.0,42005.0,0.001]
[1644677101082,0.0001,42017.0,42005.0,0.001]
[1644677101284,0.37644738,42016.0,42005.0,0.001]
[1644677101479,0.37644738,42016.0,42014.0,0.00040321]
[1644677101480,0.0001,42015.0,42014.0,0.00040321]
[1644677101679,0.332497,42015.0,42014.0,0.00040321]
[1644677102691,0.332497,42015.0,42006.0,0.08315991]
[1644677102692,0.37654738,42015.0,42012.0,0.00040322]
[1644677102879,0.332397,42013.0,42012.0,0.00040322]
[1644677103073,0.332497,42013.0,42012.0,0.00040322]
[1644677103272,0.482497,42013.0,42012.0,0.00040322]
[1644677103476,1.09658572,42013.0,42012.0,0.00040322]
[1644677103675,0.55765717,42006.0,42005.0,0.001]
[1644677103874,0.0001,42006.0,42005.0,0.001]
[1644677104073,0.332397,42006.0,42005.0,0.001]
[1644677104275,0.332497,42006.0,42005.0,0.001]
[1644677104473,0.32005498,42006.0,42003.0,0.001]
[1644677104675,0.32005498,42006.0,41984.0,0.0011]
[1644677104676,0.59546619,42005.0,41984.0,0.0011]
[1644677104876,0.59546619,42005.0,41990.0,0.05]
[1644677104877,0.04405038,42003.0,41990.0,0.05]
[1644677105174,0.332397,42003.0,42000.0,0.6911]
[1644677105374,0.0001,42002.0,42000.0,0.6911]
[1644677105574,0.58174287,42001.0,42000.0,0.6911]
[1644677105775,0.58174287,42001.0,41991.0,0.01]
[1644677105776,0.85,42000.0,41991.0,0.01]
[1644677105981,0.04405038,41995.0,41991.0,0.01]
[1644677106379,0.04405038,41995.0,41993.0,0.00040199]
[1644677106579,0.332397,41994.0,41993.0,0.00040199]
[1644677106882,0.75139091,41994.0,41993.0,0.00040199]
[1644677107179,1.11594028,41994.0,41993.0,0.00040199]
[1644677107378,1.11594028,41994.0,41991.0,0.01]
[1644677107379,0.78354328,41994.0,41991.0,0.01]
[1644677107581,0.332397,41993.0,41991.0,0.01040199]
[1644677107778,0.85,41991.0,41985.0,0.00160822]
[1644677107981,0.85,41991.0,41981.0,0.01]
[1644677107982,1.05,41987.0,41981.0,0.01]
[1644677108186,1.05,41987.0,41978.0,0.079]
[1644677108187,0.2,41982.0,41978.0,0.079]
[1644677108382,0.37644738,41981.0,41978.0,0.079]
[1644677108585,0.37644738,41981.0,41975.0,0.001]
[1644677108586,1.182397,41980.0,41975.0,0.001]
[1644677108881,0.0717436,41979.0,41975.0,0.001]
[1644677109281,0.44819098,41979.0,41978.0,0.088809]
[1644677109481,0.11579398,41979.0,41978.0,0.088809]
[1644677109680,0.21579398,41979.0,41978.0,0.088809]
[1644677109882,0.54819098,41979.0,41978.0,9e-06]
[1644677110144,0.19818685,41979.0,41978.0,9e-06]
[1644677110437,0.37891229,41979.0,41978.0,9e-06]
[1644677110638,0.1,41982.0,41978.0,9e-06]
[1644677110833,0.1,41984.0,41978.0,9e-06]
[1644677111036,0.0001,41983.0,41980.0,0.00594962]
[1644677111239,0.3001,41985.0,41978.0,0.0001557]
[1644677111436,0.0001,41984.0,41978.0,0.0001557]
[1644677111638,0.24429,41984.0,41978.0,0.0001557]
[1644677111837,0.0001,41983.0,41978.0,0.0001557]
[1644677112039,0.0001,41983.0,41978.0,9e-06]
[1644677112237,0.0001,41983.0,41978.0,0.00041048]
[1644677112238,0.07727334,41979.0,41978.0,0.00041048]
[1644677112438,0.3,41985.0,41978.0,0.00041048]
[1644677112439,0.0001,41982.0,41978.0,0.00041048]
[1644677112738,0.0001,41984.0,41978.0,0.00041048]
[1644677112937,0.0004014,41987.0,41978.0,0.00041048]
[1644677113144,0.332397,41986.0,41978.0,0.00041048]
[1644677113336,0.06719839,41981.0,41978.0,9e-06]
[1644677113538,0.0001,41985.0,41980.0,0.00036225]
[1644677113539,0.332397,41983.0,41980.0,0.00036225]
[1644677113741,0.0438,41991.0,41980.0,0.00036225]
[1644677113742,0.0001,41982.0,41980.0,0.00036225]
[1644677113980,0.0001,41985.0,41980.0,0.00036225]
[1644677114183,0.0001,41985.0,41981.0,0.00594962]
[1644677114482,0.332397,41987.0,41975.0,0.001]
[1644677114680,0.19292731,41985.0,41981.0,0.00036225]
[1644677114880,0.28694134,41986.0,41981.0,0.00036225]
[1644677114881,0.332497,41984.0,41981.0,0.00036225]
[1644677115082,0.0001,41983.0,41981.0,0.00036225]
[1644677115282,0.00036219,41987.0,41982.0,0.00594962]
[1644677115481,0.00036219,41987.0,41981.0,0.00036225]
[1644677115482,0.00036219,41987.0,41986.0,0.00594962]
[1644677115680,0.0001,41996.0,41986.0,0.06948816]
[1644677115881,0.2080015,41995.0,41994.0,0.23624532]
[1644677116082,0.0001,41995.0,41994.0,0.23624532]
[1644677116287,0.059661,42003.0,41994.0,0.23624532]
[1644677116481,0.3,42004.0,42001.0,0.00594962]
[1644677116482,0.0001,42002.0,42001.0,0.00594962]
[1644677116682,0.0001,42003.0,42001.0,0.00594962]
[1644677116883,0.3,42013.0,42002.0,0.0727381]
[1644677116884,0.08017281,42012.0,42002.0,0.0727381]
[1644677117085,0.00036303,42011.0,42002.0,0.31681453]
[1644677117282,0.00036215,42004.0,42002.0,0.31681453]
[1644677117736,0.00036215,42004.0,41991.0,0.0438]
[1644677118136,0.0001,42008.0,41995.0,0.00594962]
[1644677118334,0.29536303,42013.0,41995.0,0.00594962]
[1644677118635,0.19640912,42003.0,41996.0,0.07739747]
[1644677118837,0.459557,42006.0,41996.0,0.08334709]
[1644677119132,0.209557,42006.0,41996.0,0.08334709]
[1644677119333,0.209557,42006.0,41996.0,0.00594962]
[1644677119334,0.332397,42004.0,41996.0,0.00594962]
[1644677119633,0.332397,42004.0,41987.0,0.0438]
[1644677119634,0.3,42003.0,41987.0,0.0438]
[1644677119837,0.39405038,41998.0,41983.0,0.00014603]
[1644677120135,0.39405038,41998.0,41989.0,0.00594962]
[1644677120136,0.45108449,41997.0,41989.0,0.00594962]
[1644677120333,0.26366422,41994.0,41989.0,0.00594962]
[1644677120733,0.27588691,41993.0,41989.0,0.00594962]
[1644677120933,0.32588691,41993.0,41983.0,0.00014603]
[1644677121137,0.38546391,41993.0,41983.0,0.00014603]
[1644677121399,0.42588691,41993.0,41983.0,0.00014603]
[1644677121598,0.35,41991.0,41983.0,0.00014603]
[1644677121798,0.35,41991.0,41978.0,0.05]
[1644677121799,0.391981,41985.0,41979.0,0.00594962]
[1644677121999,0.09869761,41976.0,41975.0,0.001]
[1644677122800,0.09869761,41976.0,41975.0,0.051]
[1644677122999,0.09869761,41976.0,41975.0,0.24294297]
[1644677123200,0.09869761,41976.0,41975.0,0.19294297]
[1644677124699,0.09869761,41976.0,41975.0,0.001]
[1644677126140,0.70225492,41976.0,41975.0,0.001]
[1644677126338,0.46985792,41976.0,41975.0,0.001]
[1644677126540,0.80225492,41976.0,41975.0,0.001]
[1644677126938,0.48111677,41976.0,41975.0,0.001]
[1644677127138,0.19869761,41976.0,41975.0,0.001]
[1644677127535,0.43109461,41976.0,41975.0,0.001]
[1644677127737,0.70965363,41976.0,41975.0,0.001]
[1644677127935,0.37725663,41976.0,41975.0,0.001]
[1644677128137,0.43109461,41976.0,41975.0,0.001]
[1644677129083,0.09869761,41976.0,41975.0,0.001]
[1644677129682,0.70934286,41976.0,41975.0,0.001]
[1644677129880,0.47694586,41976.0,41975.0,0.001]
[1644677130684,0.47694586,41976.0,41975.0,0.00235351]
[1644677131485,0.09869761,41976.0,41975.0,0.00235351]
[1644677132644,0.09869761,41976.0,41975.0,0.20750263]
[1644677132840,0.09869761,41976.0,41975.0,0.07742052]
[1644677133242,0.09869761,41976.0,41974.0,0.001]
[1644677134042,0.09869761,41976.0,41975.0,0.21375445]
[1644677134443,0.09869761,41976.0,41974.0,0.001]
[1644677134644,0.332397,41975.0,41974.0,0.001]
[1644677134842,0.09869761,41976.0,41974.0,0.001]
[1644677135641,0.09869761,41976.0,41975.0,0.00135351]
[1644677136785,0.37411344,41976.0,41975.0,0.00135351]
[1644677136981,0.09869761,41976.0,41975.0,0.00135351]
[1644677137983,0.09869761,41976.0,41975.0,0.08790812]
[1644677138386,0.12369761,41976.0,41975.0,0.08790812]
[1644677139986,0.12369761,41976.0,41975.0,0.00135351]
[1644677140435,0.12369761,41976.0,41974.0,0.001]
[1644677143236,0.12369761,41976.0,41974.0,0.00139435]
[1644677146485,0.09869761,41976.0,41974.0,0.00139435]
[1644677147090,0.09869761,41976.0,41974.0,0.25252928]
[1644677148932,0.09869761,41976.0,41974.0,0.00139435]
[1644677150236,0.85,41974.0,41972.0,0.0021]
[1644677150436,0.3,41973.0,41972.0,0.0021]
[1644677150634,0.10658364,41974.0,41972.0,0.0021]
[1644677151033,0.24195071,41973.0,41972.0,0.0021]
[1644677151481,0.53898064,41974.0,41972.0,0.0021]
[1644677151880,0.43898064,41974.0,41972.0,0.0021]
[1644677152083,0.43898064,41974.0,41966.0,0.001]
[1644677152084,0.02185361,41964.0,41962.0,0.0011]
[1644677153483,0.35425061,41964.0,41962.0,0.0011]
[1644677153686,0.02185361,41964.0,41962.0,0.0011]
[1644677154186,0.39805061,41964.0,41962.0,0.0011]
[1644677154386,0.49805061,41964.0,41962.0,0.0011]
[1644677154889,0.46565361,41964.0,41962.0,0.0011]
[1644677155331,0.49805061,41964.0,41962.0,0.0011]
[1644677155734,0.16565361,41964.0,41962.0,0.0011]
[1644677156133,0.39805061,41964.0,41962.0,0.0011]
[1644677156333,0.06565361,41964.0,41962.0,0.0011]
[1644677156533,0.34115034,41964.0,41962.0,0.0011]
[1644677157734,0.44115034,41964.0,41962.0,0.0011]
[1644677157934,0.34115034,41964.0,41962.0,0.0011]
[1644677158135,0.44115034,41964.0,41962.0,0.0011]
[1644677158536,0.44115034,41964.0,41961.0,0.00820085]
[1644677158537,0.332397,41963.0,41961.0,0.00820085]
[1644677158735,0.30316332,41962.0,41961.0,0.00820085]
[1644677158981,0.909621,41961.0,41956.0,0.0021]
[1644677159182,0.29131097,41960.0,41959.0,0.00139936]
[1644677159384,0.08165672,41961.0,41959.0,0.00139936]
[1644677159784,0.41405372,41961.0,41959.0,0.00139936]
[1644677159985,0.08165672,41961.0,41959.0,0.00139936]
[1644677160189,0.02185361,41964.0,41959.0,0.001]
[1644677160386,0.332397,41963.0,41959.0,0.001]
[1644677160785,0.432397,41963.0,41959.0,0.001]
[1644677161187,0.332397,41961.0,41959.0,0.001]
[1644677161389,0.27982636,41960.0,41959.0,0.001]
[1644677161887,0.432397,41961.0,41959.0,0.001]
[1644677161888,0.332397,41961.0,41959.0,0.001]
[1644677163838,0.432397,41961.0,41959.0,0.001]
[1644677164237,0.332397,41961.0,41959.0,0.001]
[1644677164436,0.17878149,41961.0,41959.0,0.001]
[1644677164734,0.56117849,41961.0,41959.0,0.001]
[1644677165339,0.61117849,41961.0,41959.0,0.001]
[1644677169588,0.85,41959.0,41949.0,0.04095301]
[1644677169889,0.85,41959.0,41945.0,0.0011]
[1644677169890,0.332397,41955.0,41945.0,0.0011]
[1644677170144,0.2270304,41948.0,41945.0,0.0011]
[1644677170437,0.332397,41955.0,41945.0,0.0011]
[1644677170438,0.332397,41947.0,41945.0,0.0011]
[1644677170840,0.432397,41947.0,41945.0,0.0011]
[1644677171039,0.1,41947.0,41941.0,0.0042]
[1644677171840,0.07246084,41948.0,41941.0,0.0042]
[1644677172241,0.19502619,41946.0,41941.0,0.0042]
[1644677172445,0.332397,41945.0,41941.0,0.0042]
[1644677172644,0.19502619,41946.0,41941.0,0.0042]
[1644677173148,0.332397,41945.0,41941.0,0.0042]
[1644677173345,0.432427,41945.0,41941.0,0.0042]
[1644677173543,0.332427,41944.0,41941.0,0.00460007]
[1644677173744,0.1,41945.0,41941.0,0.00460007]
[1644677174481,0.332427,41943.0,41941.0,0.00460007]
[1644677174683,0.332427,41943.0,41941.0,0.0042]
[1644677174882,0.332427,41943.0,41941.0,0.00460007]
[1644677174883,0.432427,41943.0,41941.0,0.00460007]
[1644677175786,0.432427,41943.0,41941.0,0.0042]
[1644677176083,0.1,41943.0,41941.0,0.0042]
[1644677176280,0.19502619,41946.0,41941.0,0.0042]
[1644677176482,0.332427,41945.0,41941.0,0.0042]
[1644677176781,0.332427,41944.0,41941.0,0.0042]
[1644677176981,0.332427,41943.0,41941.0,0.0042]
[1644677177180,0.332427,41943.0,41941.0,0.00460007]
[1644677177383,0.432427,41943.0,41941.0,0.00460007]
[1644677177841,0.432427,41943.0,41939.0,0.001]
[1644677177842,0.85,41941.0,41939.0,0.001]
[1644677178041,0.85,41941.0,41932.0,0.0041]
[1644677178042,0.85,41939.0,41932.0,0.0041]
[1644677178244,0.119332,41937.0,41932.0,0.0041]
[1644677178445,0.380127,41936.0,41932.0,0.0041]
[1644677178837,0.24762556,41933.0,41932.0,0.0041]
[1644677179139,0.0477,41933.0,41932.0,0.0041]
[1644677179536,0.380127,41933.0,41932.0,0.0041]
[1644677179942,0.480127,41933.0,41932.0,0.0041]
[1644677180138,0.37594228,41933.0,41932.0,0.0041]
[1644677180337,0.98081152,41933.0,41932.0,0.0041]
[1644677180539,0.64838452,41933.0,41932.0,0.0041]
[1644677180740,0.75805352,41933.0,41931.0,0.0052]
[1644677180943,0.29145962,41932.0,41931.0,0.0052]
[1644677181139,0.29145962,41932.0,41925.0,0.001]
[1644677181140,0.33915962,41932.0,41925.0,0.001]
[1644677181383,0.332427,41930.0,41925.0,0.001]
[1644677181584,0.05,41928.0,41925.0,0.001]
[1644677181782,0.3477,41929.0,41925.0,0.001]
[1644677181783,0.20741261,41926.0,41925.0,0.001]
[1644677181984,0.00348717,41922.0,41921.0,0.0121]
[1644677182184,0.33591417,41922.0,41921.0,0.0071]
[1644677182584,0.33591417,41922.0,41921.0,0.012277]
[1644677182585,0.00348717,41922.0,41921.0,0.012277]
[1644677183385,0.00348717,41922.0,41920.0,0.21273205]
[1644677183691,0.00348717,41922.0,41921.0,0.33234299]
[1644677183887,0.01445715,41937.0,41935.0,0.07901403]
[1644677183888,0.00039997,41937.0,41935.0,0.07901403]
[1644677184288,0.25164978,41942.0,41935.0,0.07901403]
[1644677184486,0.25164978,41942.0,41938.0,0.20631699]
[1644677184687,0.01405718,41939.0,41929.0,0.3102355]
[1644677184892,0.01405718,41939.0,41926.0,0.30678405]
[1644677185137,0.01405718,41939.0,41927.0,0.03594282]
[1644677185331,0.01405718,41939.0,41926.0,0.35678405]
[1644677185730,0.332434,41938.0,41931.0,0.08678217]
[1644677186133,0.059642,41946.0,41931.0,0.08678217]
[1644677186338,0.11929,41947.0,41931.0,0.08693357]
[1644677186339,0.01405718,41947.0,41931.0,0.08693357]
[1644677186541,0.0001,41955.0,41940.0,0.03594282]
[1644677186736,0.01405718,41965.0,41943.0,0.03594282]
[1644677187035,0.01405718,41965.0,41963.0,0.2602145]
[1644677187036,0.0001,41965.0,41963.0,0.2602145]
[1644677187238,0.22249361,41964.0,41963.0,0.2602145]
[1644677187434,0.02185361,41964.0,41963.0,0.2602145]
[1644677188035,0.009551,41967.0,41964.0,0.85]
[1644677188243,0.009551,41967.0,41965.0,0.2158771]
[1644677188244,0.00026124,41967.0,41965.0,0.2158771]
[1644677188535,0.5874,41984.0,41965.0,0.2158771]
[1644677188536,0.28235345,41986.0,41968.0,0.85]
[1644677188737,0.01,41989.0,41968.0,0.85]
[1644677188738,0.01,41989.0,41975.0,0.03594282]
[1644677188996,0.332434,41988.0,41975.0,0.06149]
[1644677189193,0.01,41989.0,41975.0,0.06149]
[1644677189396,0.01,41989.0,41975.0,0.03649]
[1644677189397,0.19431142,41985.0,41975.0,0.03649]
[1644677189594,0.332434,41984.0,41975.0,0.03649]
[1644677189793,0.332434,41984.0,41975.0,0.03149]
[1644677189993,0.01405718,41982.0,41968.0,0.3]
[1644677190196,0.332434,41981.0,41966.0,0.0477]
[1644677190394,0.19431142,41985.0,41974.0,0.07083808]
[1644677190593,0.01,41989.0,41976.0,0.03594282]
[1644677190997,0.01,41989.0,41975.0,0.50179685]
[1644677191196,0.01,41989.0,41975.0,0.53773967]
[1644677191395,0.01,41989.0,41975.0,0.50179685]
[1644677191797,0.00026118,41984.0,41975.0,0.55179685]
[1644677192197,0.00026118,41984.0,41975.0,0.24554492]
[1644677192399,0.00026118,41984.0,41979.0,0.03594282]
[1644677192640,0.00026118,41984.0,41982.0,0.03594282]
[1644677192834,0.01,41989.0,41981.0,0.03594282]
[1644677193035,0.00026118,41984.0,41982.0,0.0477]
[1644677193434,0.00026118,41984.0,41983.0,0.35699114]
[1644677194035,0.01,41989.0,41982.0,0.0477]
[1644677194036,0.332434,41988.0,41982.0,0.0477]
[1644677194241,0.00026118,41986.0,41983.0,0.03594282]
[1644677194437,0.00026118,41986.0,41982.0,0.0477]
[1644677195133,0.01,41989.0,41985.0,0.2080623]
[1644677195333,0.01,41989.0,41988.0,0.07642364]
[1644677195535,0.01,41989.0,41985.0,0.2080623]
[1644677196394,0.01,41989.0,41982.0,0.0477]
[1644677196395,0.09573749,41989.0,41982.0,0.0477]
[1644677196593,0.0001,41988.0,41982.0,0.0477]
[1644677196798,0.01040306,41989.0,41982.0,0.0477]
[1644677197196,0.01040306,41989.0,41984.0,0.2151755]
[1644677197494,0.01040306,41989.0,41982.0,0.0477]
[1644677197495,0.01,41989.0,41982.0,0.0477]
[1644677197895,0.01040307,41989.0,41982.0,0.0477]
[1644677198095,0.01040307,41989.0,41987.0,0.19744105]
[1644677198294,0.01040307,41989.0,41982.0,0.0477]
[1644677198697,0.01040307,41989.0,41967.0,0.05]
[1644677198698,0.332434,41988.0,41967.0,0.05]
[1644677198895,0.01405718,41983.0,41969.0,0.0477]
[1644677199097,0.332434,41982.0,41969.0,0.0477]
[1644677199298,0.0001,41981.0,41972.0,0.19248545]
[1644677199497,0.23642581,41980.0,41972.0,0.19248545]
[1644677199697,0.0001,41979.0,41972.0,0.19248545]
[1644677200335,0.0004031,41978.0,41972.0,0.19248545]
[1644677201132,0.0001,41979.0,41972.0,0.19248545]
[1644677201534,0.0004031,41977.0,41972.0,0.25878401]
[1644677202335,0.0001,41979.0,41972.0,0.25878401]
[1644677202740,0.00040311,41977.0,41972.0,0.25878401]
[1644677202935,0.00040311,41977.0,41972.0,0.35878401]
[1644677203536,0.0001,41985.0,41972.0,0.35878401]
[1644677203739,0.0001,41985.0,41981.0,0.24019229]
[1644677203983,0.0001,41985.0,41967.0,0.05]
[1644677203984,0.01405718,41983.0,41967.0,0.05]
[1644677204183,0.30795802,41983.0,41965.0,0.35028162]
[1644677204383,0.0001,41982.0,41965.0,0.27928162]
[1644677204586,0.0001,41983.0,41966.0,0.04013913]
[1644677204983,0.00026176,41976.0,41974.0,0.0888876]
[1644677205982,0.27080212,41983.0,41974.0,0.0888876]
[1644677206183,0.0001,41982.0,41981.0,0.25574608]
[1644677206383,0.0001,41983.0,41981.0,0.25574608]
[1644677206683,0.332434,41982.0,41981.0,0.25574608]
[1644677206982,0.0001,41982.0,41981.0,0.25574608]
[1644677207185,0.25937011,41984.0,41975.0,0.24754885]
[1644677207186,0.42028974,41980.0,41975.0,0.24754885]
[1644677207383,0.0001,41979.0,41975.0,0.24754885]
[1644677207644,0.0001,41979.0,41975.0,0.29754885]
[1644677207840,0.01405718,41988.0,41977.0,0.85]
[1644677208040,0.01,41989.0,41977.0,0.85]
[1644677208041,0.01,41989.0,41977.0,0.8977]
[1644677208243,0.01,41989.0,41983.0,0.03594282]
[1644677208641,0.01,41989.0,41988.0,0.0727702]
[1644677208839,0.01,41989.0,41985.0,0.22464252]
[1644677209043,0.332434,41988.0,41984.0,0.24843147]
[1644677209242,0.01,41989.0,41984.0,0.29843147]
[1644677210441,0.01,41989.0,41984.0,0.61075053]
[1644677210742,0.332434,41988.0,41984.0,0.24843147]
[1644677210943,0.01,41989.0,41984.0,0.24843147]
[1644677211591,0.01,41989.0,41979.0,0.30618811]
[1644677211890,0.08419717,41987.0,41977.0,0.33299787]
[1644677212090,0.24961453,41988.0,41977.0,0.33299787]
[1644677212289,0.24961453,41988.0,41978.0,0.05]
[1644677212290,0.00040602,41986.0,41978.0,0.05]
[1644677212592,0.00040602,41986.0,41982.0,0.25705378]
[1644677213090,0.00040602,41986.0,41984.0,0.08575165]
[1644677213290,0.01,41989.0,41984.0,0.08575165]
[1644677213492,0.00040602,41986.0,41984.0,0.08575165]
[1644677213691,0.00040602,41986.0,41984.0,0.05266833]
[1644677214491,0.00040602,41986.0,41982.0,0.30705378]
[1644677214492,0.01,41989.0,41986.0,0.00040602]
[1644677214693,0.005,41989.0,41986.0,0.00040602]
[1644677217334,0.1,42000.0,41989.0,0.23396691]
[1644677217535,0.24969894,41996.0,41989.0,0.23396691]
[1644677217936,0.01405718,41995.0,41986.0,0.25659047]
[1644677218234,0.01405718,41995.0,41986.0,0.00040602]
[1644677218535,0.24969894,41996.0,41986.0,0.00040602]
[1644677218737,0.01405718,41992.0,41986.0,0.00040602]
[1644677219987,0.24969894,41996.0,41986.0,0.00040602]
[1644677220189,0.01405718,41995.0,41986.0,0.00040602]
[1644677220389,0.01405718,41995.0,41989.0,0.2517621]
[1644677220987,0.01405718,41995.0,41986.0,0.00040602]
[1644677221186,0.01405718,41992.0,41982.0,0.1714455]
[1644677221387,0.01405718,41992.0,41982.0,0.09040602]
[1644677221586,0.01405718,41992.0,41979.0,0.05]
[1644677221792,0.382434,41991.0,41985.0,0.0004114]
[1644677222090,0.34649118,41986.0,41985.0,0.0004114]
[1644677222387,0.32860108,41986.0,41985.0,0.0004114]
[1644677222640,0.01415718,41986.0,41985.0,0.0004114]
[1644677222841,0.01405718,41986.0,41972.0,0.22401524]
[1644677223140,0.01405718,41986.0,41983.0,0.00041141]
[1644677223141,0.01405718,41984.0,41983.0,0.00041141]
[1644677223337,0.01415718,41984.0,41983.0,0.00041141]
[1644677223538,0.01405718,41984.0,41983.0,0.00041141]
[1644677223941,0.34659118,41984.0,41967.0,0.7963]
[1644677224240,0.34659118,41984.0,41967.0,0.187]
[1644677224241,0.01405718,41976.0,41967.0,0.187]
[1644677224443,0.01405718,41976.0,41964.0,0.00164633]
[1644677224444,0.332434,41975.0,41964.0,0.00164633]
[1644677224640,0.19811648,41973.0,41964.0,0.00164633]
[1644677225042,0.01405718,41973.0,41967.0,0.19681303]
[1644677226585,0.01405718,41973.0,41968.0,0.00041109]
[1644677226987,0.06689404,41972.0,41968.0,0.00041109]
[1644677227188,0.22909112,41970.0,41968.0,0.00041109]
[1644677227389,0.27688866,41969.0,41968.0,0.00041109]
[1644677227589,0.27688866,41969.0,41958.0,0.05]
[1644677227590,0.62337984,41969.0,41958.0,0.05]
[1644677227788,0.43864584,41969.0,41967.0,0.0004111]
[1644677227990,0.60845912,41968.0,41967.0,0.0004111]
[1644677228190,0.60845912,41968.0,41951.0,0.5848]
[1644677228191,0.0012333,41966.0,41953.0,0.0001514]
[1644677228398,0.01405718,41954.0,41952.0,0.0001514]
[1644677228591,0.332434,41953.0,41951.0,0.01]
[1644677228789,0.01405718,41954.0,41951.0,0.01]
[1644677228989,0.0477,41953.0,41951.0,0.01]
[1644677229189,0.0477,41953.0,41951.0,0.20197774]
[1644677229393,0.0477,41953.0,41952.0,0.08346018]
[1644677230942,0.01405718,41958.0,41952.0,0.08346018]
[1644677231335,0.25064681,41964.0,41952.0,0.08346018]
[1644677231537,0.01405718,41955.0,41951.0,0.0101514]
[1644677231737,0.119252,41962.0,41951.0,0.01]
[1644677231738,0.01405718,41952.0,41951.0,0.01]
[1644677232037,0.059622,41960.0,41951.0,0.01]
[1644677232237,0.01405718,41957.0,41951.0,0.01]
[1644677232638,0.01405718,41957.0,41953.0,0.00041077]
[1644677232838,0.01405718,41954.0,41953.0,0.00041077]
[1644677233240,0.34649118,41954.0,41953.0,0.00041077]
[1644677233637,0.49419118,41954.0,41951.0,0.01]
[1644677233887,0.55719253,41954.0,41951.0,0.01041078]
[1644677234087,0.332434,41953.0,41951.0,0.01041078]
[1644677234290,0.60382702,41952.0,41951.0,0.01041078]
[1644677234488,0.382434,41952.0,41951.0,0.01041078]
[1644677234687,0.530134,41952.0,41951.0,0.01041078]
[1644677234887,0.530134,41952.0,41951.0,0.01]
[1644677235090,0.530134,41952.0,41949.0,0.00041079]
[1644677235091,0.332434,41950.0,41949.0,0.00041079]
[1644677235291,0.332434,41950.0,41940.0,0.00132438]
[1644677235292,0.26815922,41943.0,41940.0,0.00132438]
[1644677235492,0.059659,41939.0,41924.0,0.001]
[1644677235690,0.01405718,41933.0,41924.0,0.001]
[1644677235892,0.0477,41933.0,41924.0,0.001]
[1644677236094,0.0477,41933.0,41932.0,0.28020961]
[1644677236488,0.0477,41933.0,41932.0,0.0021]
[1644677236888,0.0477,41933.0,41932.0,0.24232943]
[1644677237288,0.01405718,41941.0,41932.0,0.24232943]
[1644677237488,0.31405718,41941.0,41932.0,0.24232943]
[1644677237737,0.31405718,41941.0,41934.0,0.06348806]
[1644677237938,0.0477,41942.0,41934.0,0.06348806]
[1644677238243,1.09314713,41952.0,41934.0,0.06348806]
[1644677238438,0.7887,41953.0,41949.0,0.23033397]
[1644677238439,0.0477,41953.0,41949.0,0.23033397]
[1644677238640,0.01405718,41950.0,41937.0,0.05]
[1644677238836,0.0477,41953.0,41936.0,0.00014327]
[1644677238837,0.01405718,41946.0,41936.0,0.00014327]
[1644677239037,0.01405718,41946.0,41940.0,0.19320212]
[1644677239638,0.0477,41953.0,41941.0,0.27240017]
[1644677239840,0.00040711,41945.0,41941.0,0.27280732]
[1644677240237,0.00040711,41945.0,41942.0,0.33348387]
[1644677240839,0.29974663,41953.0,41942.0,0.33348387]
[1644677240840,0.332434,41951.0,41942.0,0.33348387]
[1644677241038,0.07939729,41952.0,41942.0,0.33348387]
[1644677241039,0.00040711,41946.0,41942.0,0.33348387]
[1644677241245,0.00040711,41946.0,41942.0,0.30120491]
[1644677241486,0.332434,41945.0,41942.0,0.30120491]
[1644677241787,0.332434,41945.0,41941.0,0.27280732]
[1644677241988,0.01405718,41952.0,41941.0,0.27240017]
[1644677242287,0.00040711,41946.0,41941.0,0.27280732]
[1644677242488,0.332434,41945.0,41941.0,0.00040715]
[1644677242689,0.332434,41944.0,41941.0,0.00040715]
[1644677242990,0.332434,41944.0,41932.0,0.551]
[1644677242991,0.332434,41939.0,41932.0,0.0021]
[1644677243191,0.0008143,41940.0,41932.0,0.0021]
[1644677243192,0.26969889,41938.0,41932.0,0.0021]
[1644677243389,0.0008143,41940.0,41932.0,0.0021]
[1644677243794,0.01405718,41939.0,41932.0,0.0021]
[1644677244393,0.0008143,41940.0,41938.0,0.03594282]
[1644677244592,0.0008143,41940.0,41934.0,0.3]
[1644677244795,0.0008143,41940.0,41934.0,0.05]
[1644677245140,0.0008143,41940.0,41936.0,0.03813934]
[1644677245334,0.0008143,41940.0,41938.0,0.10843386]
[1644677245537,0.0008143,41940.0,41938.0,0.13249104]
[1644677245836,0.0008143,41940.0,41938.0,0.2134987]
[1644677246635,0.0008143,41940.0,41939.0,0.31903865]
[1644677246835,0.0008143,41940.0,41939.0,0.15]
[1644677247034,0.0008143,41940.0,41939.0,0.45247858]
[1644677247236,0.0008143,41940.0,41939.0,0.50247858]
[1644677249094,0.0008143,41940.0,41939.0,0.2]
[1644677249293,0.0008143,41940.0,41933.0,0.35140918]
[1644677249294,0.35730548,41940.0,41932.0,0.5687]
[1644677249495,0.02405718,41939.0,41937.0,0.00040681]
[1644677250092,0.332434,41938.0,41937.0,0.00040681]
[1644677250294,0.5008236,41938.0,41937.0,0.00040681]
[1644677250495,0.332434,41937.0,41932.0,0.0021]
[1644677250693,0.430134,41937.0,41935.0,0.00040682]
[1644677250895,0.65649118,41936.0,41935.0,0.00040682]
[1644677251094,0.70649118,41936.0,41935.0,0.00040682]
[1644677251294,0.12405718,41936.0,41935.0,0.00040682]
[1644677251493,0.43195313,41936.0,41935.0,0.00040682]
[1644677251696,0.43195313,41936.0,41933.0,0.00015057]
[1644677251894,0.33195313,41936.0,41932.0,0.0021]
[1644677252094,0.40789595,41936.0,41932.0,0.0021]
[1644677252293,0.02405718,41933.0,41932.0,0.0021]
[1644677252493,0.30789595,41936.0,41932.0,0.0021]
[1644677252738,0.02405718,41938.0,41932.0,0.0021]
[1644677252936,0.02405718,41936.0,41932.0,0.00225057]
[1644677253138,0.02405718,41936.0,41932.0,0.0021]
[1644677253537,0.4764822,41939.0,41932.0,0.0021]
[1644677253738,0.02405718,41933.0,41932.0,0.00225057]
[1644677253939,0.02405718,41936.0,41932.0,0.0021]
[1644677254138,0.02405718,41936.0,41932.0,0.00225057]
[1644677254342,0.02405718,41936.0,41932.0,0.0021]